lending/lending_fUSD_20250621
["ID","MTS","AMOUNT","RATE_DAILY","PERIOD"]
[366843718,1750504248857,-500.0,0.00023523,2]
[366843719,1750504248867,-500.0,0.00023523,2]
[366843720,1750504248876,-500.0,0.00023523,2]
[366843721,1750504248885,-523.0,0.00023523,2]
[366843722,1750504248895,-500.0,0.00023523,2]
[366843723,1750504248904,-500.0,0.00023523,2]
[366843724,1750504248913,-500.0,0.00023523,2]
[366843725,1750504248922,-500.0,0.00023523,2]
[366843726,1750504248930,-500.0,0.00023523,2]
[366843727,1750504248938,-500.0,0.00023523,2]
[366843728,1750504248947,-500.0,0.00023523,2]
[366843729,1750504248955,-500.0,0.00023523,2]
[366843730,1750504248964,-500.0,0.00023523,2]
[366843732,1750504248974,-500.0,0.00023523,2]
[366843734,1750504248983,-500.0,0.00023523,2]
[366843736,1750504248992,-500.0,0.00023523,2]
[366843738,1750504249002,-500.0,0.00023523,2]
[366843740,1750504249011,-500.0,0.00023523,2]
[366843742,1750504249020,-500.0,0.00023523,2]
[366843744,1750504249029,-500.0,0.00023523,2]
[366843746,1750504249038,-500.0,0.00023523,2]
[366843748,1750504249048,-500.0,0.00023523,2]
[366843750,1750504249057,-500.0,0.00023523,2]
[366843752,1750504249066,-500.0,0.00023523,2]
[366843754,1750504249075,-500.0,0.00023523,2]
[366843756,1750504249085,-500.0,0.00023523,2]
[366843758,1750504249094,-500.0,0.00023523,2]
[366843760,1750504249104,-500.0,0.00023523,2]
[366843762,1750504249113,-500.0,0.00023523,2]
[366843764,1750504249123,-500.0,0.00023523,2]
[366843766,1750504249132,-500.0,0.00023523,2]
[366843767,1750504249141,-500.0,0.00023523,2]
[366843768,1750504249151,-500.0,0.00023523,2]
[366843769,1750504249161,-500.0,0.00023523,2]
[366843770,1750504249171,-500.0,0.00023523,2]
[366843771,1750504249181,-500.0,0.00023523,2]
[366843772,1750504249191,-500.0,0.00023523,2]
[366843773,1750504249200,-500.0,0.00023523,2]
[366843774,1750504249209,-500.0,0.00023523,2]
[366843775,1750504249219,-500.0,0.00023523,2]
[366843776,1750504249229,-500.0,0.00023523,2]
[366843777,1750504249239,-500.0,0.00023523,2]
[366843778,1750504249249,-500.0,0.00023523,2]
[366843779,1750504249259,-500.0,0.00023523,2]
[366843780,1750504249269,-500.0,0.00023523,2]
[366843781,1750504249278,-500.0,0.00023523,2]
[366843782,1750504249287,-500.0,0.00023523,2]
[366843783,1750504249298,-500.0,0.00023523,2]
[366843784,1750504249307,-500.0,0.00023523,2]
[366843785,1750504249316,-500.0,0.00023523,2]
[366843786,1750504249326,-500.0,0.00023523,2]
[366843787,1750504249336,-500.0,0.00023523,2]
[366843788,1750504249345,-500.0,0.00023523,2]
[366843789,1750504249358,-500.0,0.00023523,2]
[366843790,1750504249367,-500.0,0.00023523,2]
[366843791,1750504249377,-500.0,0.00023523,2]
[366843792,1750504249387,-500.0,0.00023523,2]
[366843793,1750504249396,-500.0,0.00023523,2]
[366843794,1750504249406,-500.0,0.00023523,2]
[366843795,1750504249416,-500.0,0.00023523,2]
[366843796,1750504249425,-500.0,0.00023523,2]
[366843797,1750504249435,-500.0,0.00023523,2]
[366843798,1750504249444,-500.0,0.00023523,2]
[366843799,1750504249453,-500.0,0.00023523,2]
[366843800,1750504249463,-500.0,0.00023523,2]
[366843801,1750504249473,-500.0,0.00023523,2]
[366843802,1750504249482,-500.0,0.00023523,2]
[366843803,1750504249492,-500.0,0.00023523,2]
[366843804,1750504249501,-500.0,0.00023523,2]
[366843805,1750504249511,-500.0,0.00023523,2]
[366843806,1750504249521,-500.0,0.00023523,2]
[366843807,1750504249530,-500.0,0.00023523,2]
[366843808,1750504249540,-500.0,0.00023523,2]
[366843809,1750504249550,-500.0,0.00023523,2]
[366843810,1750504249559,-500.0,0.00023523,2]
[366843811,1750504249570,-567.0,0.00023523,2]
[366843812,1750504249579,-500.0,0.00023523,2]
[366843813,1750504249589,-500.0,0.00023523,2]
[366843814,1750504249601,-500.0,0.00023523,2]
[366843815,1750504249611,-500.0,0.00023523,2]
[366843816,1750504249620,-500.0,0.00023523,2]
[366843817,1750504249630,-79.12247056,0.00023523,2]
[366843818,1750504249650,-373.22169948,0.00023523,2]
[366843819,1750504249728,-47.65582996,0.00023523,2]
[366843820,1750504249737,-500.0,0.00023523,2]
[366843821,1750504249746,-500.0,0.00023523,2]
[366843822,1750504249755,-3.34417004,0.00023523,2]
[366843823,1750504249767,-496.65582996,0.00023523,2]
[366843824,1750504249776,-500.0,0.00023523,2]
[366843825,1750504249785,-500.0,0.00023523,2]
[366843826,1750504249794,-500.0,0.00023523,2]
[366843827,1750504249803,-500.0,0.00023523,2]
[366843828,1750504249811,-864.02851879,0.00023523,2]
[366843829,1750504249862,-122.97148121,0.00023523,2]
[366843830,1750504249870,-500.0,0.00023523,2]
[366843831,1750504249877,-500.0,0.00023523,2]
[366843832,1750504249885,-500.0,0.00023523,2]
[366843833,1750504249893,-500.0,0.00023523,2]
[366843834,1750504249901,-500.0,0.00023523,2]
[366843835,1750504249911,-500.0,0.00023523,2]
[366843836,1750504249920,-500.0,0.00023523,2]
[366843837,1750504249930,-500.0,0.00023523,2]
[366843838,1750504249939,-260.19563163,0.00023523,2]
[366843839,1750504249950,-239.80436837,0.00023523,2]
[366843840,1750504249959,-500.0,0.00023523,2]
[366843841,1750504249969,-500.0,0.00023523,2]
[366843842,1750504249978,-500.0,0.00023523,2]
[366843843,1750504249987,-500.0,0.00023523,2]
[366843844,1750504249996,-500.0,0.00023523,2]
[366843845,1750504250006,-500.0,0.00023523,2]
[366843846,1750504250015,-500.0,0.00023523,2]
[366843847,1750504250024,-500.0,0.00023523,2]
[366843848,1750504250033,-500.0,0.00023523,2]
[366843849,1750504250268,-500.0,0.00023523,2]
[366843850,1750504250277,-500.0,0.00023523,2]
[366843851,1750504250286,-500.0,0.00023523,2]
[366843852,1750504250295,-500.0,0.00023523,2]
[366843853,1750504250305,-500.0,0.00023523,2]
[366843854,1750504250314,-500.0,0.00023523,2]
[366843855,1750504250323,-500.0,0.00023523,2]
[366843856,1750504250333,-500.0,0.00023523,2]
[366843857,1750504250342,-500.0,0.00023523,2]
[366843858,1750504250351,-500.0,0.00023523,2]
[366843859,1750504250360,-500.0,0.00023523,2]
[366843860,1750504250370,-500.0,0.00023523,2]
[366843861,1750504250379,-500.0,0.00023523,2]
[366843862,1750504250389,-500.0,0.00023523,2]
[366843863,1750504250398,-500.0,0.00023523,2]
[366843864,1750504250410,-500.0,0.00023523,2]
[366843865,1750504250419,-500.0,0.00023523,2]
[366843866,1750504250428,-500.0,0.00023523,2]
[366843867,1750504250437,-500.0,0.00023523,2]
[366843868,1750504250446,-500.0,0.00023523,2]
[366843869,1750504250455,-500.0,0.00023523,2]
[366843870,1750504250465,-500.0,0.00023523,2]
[366843871,1750504250474,-500.0,0.00023523,2]
[366843872,1750504250483,-500.0,0.00023523,2]
[366843873,1750504250493,-500.0,0.00023523,2]
[366843874,1750504250502,-500.0,0.00023523,2]
[366843875,1750504250511,-500.0,0.00023523,2]
[366843876,1750504250521,-500.0,0.00023523,2]
[366843877,1750504250530,-500.0,0.00023523,2]
[366843878,1750504250539,-500.0,0.00023523,2]
[366843879,1750504250548,-500.0,0.00023523,2]
[366843880,1750504250558,-500.0,0.00023523,2]
[366843881,1750504250567,-500.0,0.00023523,2]
[366843882,1750504250577,-500.0,0.00023523,2]
[366843883,1750504250586,-500.0,0.00023523,2]
[366843884,1750504250598,-500.0,0.00023523,2]
[366843885,1750504250607,-500.0,0.00023523,2]
[366843886,1750504250616,-500.0,0.00023523,2]
[366843887,1750504250626,-500.0,0.00023523,2]
[366843888,1750504250636,-500.0,0.00023523,2]
[366843889,1750504250645,-500.0,0.00023523,2]
[366843890,1750504250655,-207.2656556,0.00023523,2]
[366843891,1750504250667,-292.7343444,0.00023523,2]
[366843892,1750504250677,-500.0,0.00023523,2]
[366843893,1750504250686,-500.0,0.00023523,2]
[366843894,1750504250695,-500.0,0.00023523,2]
[366843895,1750504250704,-500.0,0.00023523,2]
[366843896,1750504250713,-500.0,0.00023523,2]
[366843897,1750504250723,-500.0,0.00023523,2]
[366843898,1750504250939,-500.0,0.00023523,2]
[366843899,1750504250948,-500.0,0.00023523,2]
[366843900,1750504250959,-500.0,0.00023523,2]
[366843901,1750504250971,-500.0,0.00023523,2]
[366843902,1750504250980,-500.0,0.00023523,2]
[366843903,1750504250989,-500.0,0.00023523,2]
[366843904,1750504250998,-500.0,0.00023523,2]
[366843905,1750504251007,-500.0,0.00023523,2]
[366843906,1750504251017,-500.0,0.00023523,2]
[366843907,1750504251026,-500.0,0.00023523,2]
[366843908,1750504251035,-500.0,0.00023523,2]
[366843909,1750504251044,-500.0,0.00023523,2]
[366843910,1750504251054,-500.0,0.00023523,2]
[366843911,1750504251064,-500.0,0.00023523,2]
[366843912,1750504251073,-500.0,0.00023523,2]
[366843913,1750504251084,-500.0,0.00023523,2]
[366843914,1750504251095,-500.0,0.00023523,2]
[366843915,1750504251106,-178.98811576,0.00023523,2]
[366843916,1750504251119,-321.01188424,0.00023523,2]
[366843917,1750504251128,-285.16656788,0.00023523,2]
[366843918,1750504251139,-214.83343212,0.00023523,2]
[366843919,1750504251148,-500.0,0.00023523,2]
[366843920,1750504251158,-215.67605097,0.00023523,2]
[366843921,1750504359983,-202.0,0.00012682,2]
[366843922,1750504360010,-300.0,0.0001395,2]
[366843923,1750504360036,-250.0,0.0001395,2]
[366843924,1750504360061,-2298.0,0.0001395,2]
[366843928,1750504918872,-265.0,0.00013699,2]
[366843929,1750505000009,-0.05,0.00013699,2]
[366843930,1750505073269,-202.0,0.0001395,2]
[366843931,1750505176044,-250.0,0.00015,2]
[366843932,1750505176072,-250.0,0.00015068,2]
[366843933,1750505176096,-300.0,0.00015345,2]
[366843934,1750505176122,-300.0,0.00015399,2]
[366843935,1750505176149,-15389.6949487,0.000154,2]
[366843936,1750505176173,-10022.58199082,0.00016,2]
[366843937,1750505232314,246.17573255,0.00015,2]
[366843938,1750505235612,3165.02906861,0.00015,2]
[366844134,1750505432092,-1454.2401417,0.00016824,2]
[366844135,1750505432102,-754.85915097,0.00016836,2]
[366844136,1750505432114,-300.0,0.00016847,2]
[366844137,1750505432123,-2500.0,0.00017213,2]
[366844138,1750505432133,-300.0,0.00019998,2]
[366844139,1750505432143,-500.0,0.00019999,2]
[366844140,1750505432153,-243.0,0.00019999,2]
[366844141,1750505432163,-1200.0,0.00019999,2]
[366844142,1750505432172,-600.0,0.0002,5]
[366844143,1750505432182,-600.0,0.0002,5]
[366844144,1750505432191,-600.0,0.0002,5]
[366844145,1750505432201,-600.0,0.0002,5]
[366844146,1750505432210,-320.33022789,0.0002,5]
[366844147,1750505432219,-600.0,0.0002,5]
[366844148,1750505432229,-600.0,0.0002,5]
[366844149,1750505432239,-600.0,0.0002,5]
[366844150,1750505432248,-600.0,0.0002,5]
[366844151,1750505432257,-600.0,0.0002,5]
[366844152,1750505432267,-600.0,0.0002,5]
[366844153,1750505432278,-600.0,0.0002,5]
[366844154,1750505432289,-600.0,0.0002,5]
[366844155,1750505432299,-600.0,0.0002,5]
[366844156,1750505432310,-600.0,0.0002,5]
[366844157,1750505432319,-600.0,0.0002,5]
[366844158,1750505432329,-600.0,0.0002,5]
[366844159,1750505432339,-600.0,0.0002,5]
[366844160,1750505432349,-600.0,0.0002,5]
[366844161,1750505432358,-600.0,0.0002,5]
[366844162,1750505432368,-600.0,0.0002,5]
[366844163,1750505432377,-600.0,0.0002,5]
[366844164,1750505432387,-834.26476573,0.00020181,2]
[366844165,1750505432396,-704.0,0.00020184,2]
[366844166,1750505432405,-265.05,0.00020187,2]
[366844167,1750505432415,-201.0,0.00020816,2]
[366844168,1750505432425,-154.56,0.00021221,2]
[366844169,1750505432435,-312.55,0.00021261,2]
[366844170,1750505432444,-150.0,0.00021327,2]
[366844171,1750505432454,-173.63,0.00021344,2]
[366844172,1750505432464,-8450.51571371,0.00021459,2]
[366844173,1750505432515,-397.0,0.00021459,2]
[366844174,1750505432528,-1408.56428629,0.00021459,2]
[366844176,1750505432542,-2751.0,0.00021504,2]
[366844178,1750505432551,-666.0,0.00021581,2]
[366844179,1750505432560,-193.55,0.00021614,2]
[366844180,1750505432570,-11244.23,0.00021637,2]
[366844181,1750505432580,-390.8,0.00021656,2]
[366844182,1750505432590,-23900.0,0.00021699,2]
[366844183,1750505432600,-272.3857,0.00021731,2]
[366844184,1750505432611,-16468.9612,0.00021743,2]
[366844185,1750505432622,-305.25,0.00021744,2]
[366844186,1750505432631,-251.31,0.00021744,2]
[366844187,1750505432641,-251.21,0.00021744,2]
[366844189,1750505432651,-301.42,0.00021744,2]
[366844191,1750505432660,-1157.96,0.00021746,2]
[366844193,1750505432670,-200.0,0.00021824,2]
[366844195,1750505432679,-5982.06,0.00021831,2]
[366844197,1750505432689,-1000.0,0.0002185,2]
[366844199,1750505432699,-1200.0,0.00021881,2]
[366844200,1750505432708,-228.1906,0.00021935,2]
[366844201,1750505432719,-416.2359,0.00021935,2]
[366844202,1750505432729,-2032.63,0.00021988,2]
[366844203,1750505432988,-904.2,0.00021996,2]
[366844204,1750505433000,-166.67,0.00022017,2]
[366844205,1750505433010,-154.56,0.00022017,2]
[366844206,1750505433020,-36308.69,0.00022034,2]
[366844207,1750505433030,-201.0,0.00022122,3]
[366844208,1750505433040,-500.0,0.000223,2]
[366844209,1750505433050,-750.81041459,0.000223,7]
[366844210,1750505433060,-750.81041459,0.000223,7]
[366844211,1750505433070,-750.81041459,0.000223,7]
[366844212,1750505433081,-750.81041459,0.000223,7]
[366844213,1750505433092,-750.81041459,0.000223,7]
[366844214,1750505433101,-354.96,0.0002233,2]
[366844215,1750505433111,-669.83869099,0.00022344,2]
[366844216,1750505433122,-200.0,0.00022701,2]
[366844217,1750505433131,-669.83869099,0.00022738,2]
[366844218,1750505433141,-461.73,0.00022767,2]
[366844219,1750505433151,-803.0,0.00022771,2]
[366844220,1750505433160,-638.0,0.00022771,2]
[366844221,1750505433170,-928.0,0.00022771,2]
[366844222,1750505433180,-1278.0,0.00022771,2]
[366844223,1750505433189,-559.0,0.00022771,2]
[366844224,1750505433198,-2005.0,0.00022771,2]
[366844225,1750505433208,-591.0,0.00022771,2]
[366844226,1750505433217,-1676.0,0.00022771,2]
[366844227,1750505433227,-1161.0,0.00022771,2]
[366844228,1750505433237,-946.0,0.00022771,2]
[366844229,1750505433246,-2467.18833719,0.00022771,2]
[366844230,1750505433258,-867.81166281,0.00022771,2]
[366844231,1750505433268,-7135.0,0.00022771,2]
[366844232,1750505433278,-455.32,0.00022778,2]
[366844233,1750505433288,-160.2,0.00022811,2]
[366844234,1750505433298,-154.56,0.00022813,2]
[366844235,1750505433308,-750.81041459,0.00022831,8]
[366844236,1750505433318,-151.0,0.00022851,2]
[366844237,1750505433328,-1957.856,0.00022851,2]
[366844238,1750505433338,-300.0,0.00022851,2]
[366844239,1750505433348,-300.0,0.00022851,2]
[366844240,1750505433358,-300.0,0.00022851,2]
[366844241,1750505433368,-300.0,0.00022851,2]
[366844242,1750505433377,-300.0,0.00022851,2]
[366844243,1750505433387,-300.0,0.00022851,2]
[366844244,1750505433396,-300.0,0.00022851,2]
[366844245,1750505433406,-300.0,0.00022851,2]
[366844246,1750505433416,-305.2194255,0.00022851,2]
[366844247,1750505433426,-207.4,0.00022851,2]
[366844248,1750505433436,-1852.42,0.00022892,2]
[366844249,1750505433445,-1446.83314989,0.000229,2]
[366844250,1750505433455,-427.19754137,0.000229,2]
[366844251,1750505433464,-427.19754129,0.000229,2]
[366844252,1750505433474,-427.19754129,0.000229,2]
[366844253,1750505433484,-1000.0,0.000229,2]
[366844254,1750505433493,-2030.296672,0.00022906,2]
[366844255,1750505433502,-1642.52956056,0.00022961,2]
[366844256,1750505433512,-427.19754129,0.00022971,2]
[366844257,1750505433522,-16072.25788938,0.00023,5]
[366844258,1750505433534,-608.41211062,0.00023,5]
[366844259,1750505433543,-577.44206526,0.00023012,2]
[366844260,1750505433555,-92.39662573,0.00023012,2]
[366844261,1750505433565,-150.0,0.00023041,2]
[366844262,1750505433574,-170.89,0.00023041,2]
[366844263,1750505433584,-455.38,0.00023041,2]
[366844264,1750505433595,-355.03,0.00023041,2]
[366844265,1750505433604,-301.99,0.00023041,2]
[366844266,1750505433614,-427.19754129,0.0002307,2]
[366844267,1750505433623,-9.13728868,0.00023074,2]
[366844268,1750505433678,-727.64803941,0.00023074,2]
[366844269,1750505433690,-552.01277033,0.00023074,2]
[366844270,1750505433733,-158.03505143,0.00023074,2]
[366844271,1750505433743,-514.0,0.00023114,2]
[366844272,1750505433753,-168.0,0.00023124,2]
[366844273,1750505433763,-163.55,0.00023152,2]
[366844274,1750505433773,-427.19754129,0.0002317,2]
[366844275,1750505433783,-666.12855778,0.000232,2]
[366844276,1750505433794,-168.0,0.00023201,2]
[366844277,1750505433803,-669.83869099,0.00023236,2]
[366844278,1750505433814,-1233.81859626,0.00023248,2]
[366844279,1750505433825,-213.01455359,0.00023248,2]
[366844280,1750505433835,-427.19754129,0.0002327,2]
[366844281,1750505433845,-1724.44072693,0.000233,2]
[366844282,1750505433855,-514.0,0.00023332,2]
[366844283,1750505433865,-627.59162914,0.00023333,2]
[366844284,1750505433875,-427.19754129,0.0002337,2]
[366844285,1750505433885,-627.59162914,0.00023416,2]
[366844286,1750505433897,-309.93133045,0.00023416,2]
[366844287,1750505433907,-1491.36060217,0.00023416,2]
[366844288,1750505433917,-388.82904543,0.00023416,2]
[366844289,1750505433927,-750.81041459,0.00023417,9]
[366844290,1750505433937,-1446.83314985,0.00023423,2]
[366844291,1750505433947,-200.0,0.00023423,2]
[366844292,1750505433957,-201.0,0.00023428,5]
[366844293,1750505433967,-181.91852176,0.00023434,2]
[366844294,1750505433977,-249.71,0.00023456,2]
[366844295,1750505433987,-302.22,0.00023456,2]
[366844296,1750505433997,-252.31,0.00023456,2]
[366844297,1750505434006,-427.19754129,0.0002347,2]
[366844298,1750505434016,-200.0,0.000235,2]
[366844299,1750505434026,-268.95377308,0.00023515,2]
[366844300,1750505434039,-397.04622692,0.00023515,2]
[366844301,1750505434049,-300.0,0.00023515,2]
[366844302,1750505434059,-119.59770015,0.00023515,2]
[366844303,1750505434329,-546.40229985,0.00023515,2]
[366844304,1750505434339,-235.27967883,0.00023515,2]
[366844305,1750505434352,-64.72032117,0.00023515,2]
[366844306,1750505434363,-666.0,0.00023515,2]
[366844307,1750505434374,-753.41598895,0.00023515,2]
[366844308,1750505434386,-1614.51328924,0.00023515,2]
[366844397,1750505438994,-590.61386879,0.00022771,2]
[366844399,1750505439005,-296.074194,0.00022771,2]
[366844416,1750505439154,-3208.31193721,0.00022771,2]
[366844418,1750505439163,-6655.32058,0.00023515,2]
[366844420,1750505439184,-256.51383172,0.00023515,2]
[366844421,1750505439194,-151.000001,0.00023516,7]
[366844422,1750505439204,-151.0,0.00023516,7]
[366844423,1750505439213,-1437.61261768,0.00023516,7]
[366844424,1750505439338,-618.97132832,0.00023516,7]
[366844425,1750505439347,-970.47867168,0.00023516,7]
[366844426,1750505439359,-1086.10527432,0.00023516,7]
[366844427,1750505439369,-151.0,0.00023516,7]
[366844428,1750505439379,-151.0,0.00023516,7]
[366844429,1750505439389,-151.0,0.00023516,7]
[366844430,1750505439399,-151.0,0.00023516,7]
[366844431,1750505439408,-151.0,0.00023516,7]
[366844432,1750505439417,-151.0,0.00023516,7]
[366844433,1750505439427,-151.0,0.00023516,7]
[366844434,1750505439437,-151.0,0.00023516,7]
[366844435,1750505439447,-151.0,0.00023516,7]
[366844436,1750505439456,-151.0,0.00023516,7]
[366844437,1750505439466,-151.0,0.00023516,7]
[366844438,1750505439475,-202.972057,0.00023516,7]
[366844439,1750505439486,-202.972057,0.00023516,7]
[366844440,1750505439495,-151.0,0.00023516,7]
[366844441,1750505439505,-202.972057,0.00023516,7]
[366844442,1750505439515,-202.972057,0.00023516,7]
[366844443,1750505439524,-151.0,0.00023516,7]
[366844444,1750505439533,-151.0,0.00023516,7]
[366844445,1750505439543,-152.40486,0.00023516,7]
[366844446,1750505439552,-151.0,0.00023516,7]
[366844447,1750505439561,-151.0,0.00023516,7]
[366844448,1750505439571,-151.0,0.00023516,7]
[366844449,1750505439580,-151.0,0.00023516,7]
[366844450,1750505439589,-151.445234,0.00023516,7]
[366844451,1750505439599,-151.0,0.00023516,7]
[366844452,1750505439608,-151.0,0.00023516,7]
[366844453,1750505439617,-151.0,0.00023516,7]
[366844454,1750505439627,-151.0,0.00023516,7]
[366844455,1750505439636,-151.0,0.00023516,7]
[366844456,1750505439646,-151.0,0.00023516,7]
[366844457,1750505439655,-151.0,0.00023516,7]
[366844458,1750505439665,-193.574964,0.00023516,7]
[366844459,1750505439676,-151.0,0.00023516,7]
[366844460,1750505439686,-151.0,0.00023516,7]
[366844461,1750505439695,-6066.0799252,0.00023516,2]
[366844462,1750505439704,-718.279746,0.00023516,7]
[366844463,1750505439714,-718.279746,0.00023516,7]
[366844464,1750505439723,-718.279746,0.00023516,7]
[366844465,1750505439732,-718.279746,0.00023516,7]
[366844466,1750505439743,-710.2193169,0.00023516,2]
[366844467,1750505439752,-151.0,0.00023516,7]
[366844468,1750505439761,-151.0,0.00023516,7]
[366844469,1750505439770,-151.677795,0.00023516,7]
[366844470,1750505439780,-151.0,0.00023516,7]
[366844471,1750505439789,-151.0,0.00023516,7]
[366844472,1750505439799,-151.0,0.00023516,7]
[366844473,1750505439808,-151.0,0.00023516,7]
[366844474,1750505439817,-151.0,0.00023516,7]
[366844475,1750505439827,-151.0,0.00023516,7]
[366844476,1750505439836,-151.0,0.00023516,7]
[366844477,1750505439845,-151.0,0.00023516,7]
[366844478,1750505439855,-151.0,0.00023516,7]
[366844479,1750505439865,-151.0,0.00023516,7]
[366844480,1750505439874,-151.0,0.00023516,7]
[366844481,1750505439883,-30271.499222,0.00023516,2]
[366844482,1750505440795,-416.08539783,0.00023516,2]
[366844483,1750505440811,-675.13488109,0.00023516,2]
[366844484,1750505441002,-5471.35999972,0.00023516,2]
[366844485,1750505441248,-1376.11210203,0.00023516,2]
[366844486,1750505441339,-289.254,0.00022771,2]
[366844487,1750505441350,-2170.69565152,0.00023516,2]
[366844494,1750505443196,-1111.21146799,0.00023516,2]
[366844495,1750505443208,-682.4973845,0.00023516,2]
[366844501,1750505443613,-10596.0,0.00023516,2]
[366844503,1750505443702,-619.2449657,0.00023516,2]
[366844504,1750505446239,-560.98565334,0.00023516,2]
[366844505,1750505446267,-40602.21995986,0.00023516,2]
[366844506,1750505446279,-74158.12088002,0.00023516,2]
[366844507,1750505446289,-151.0,0.00023516,7]
[366844508,1750505446299,-151.0,0.00023516,7]
[366844509,1750505446309,-151.0,0.00023516,7]
[366844510,1750505446319,-151.0,0.00023516,7]
[366844511,1750505446329,-151.0,0.00023516,7]
[366844512,1750505446338,-151.0,0.00023516,7]
[366844513,1750505446348,-151.0,0.00023516,7]
[366844514,1750505446358,-151.0,0.00023516,7]
[366844516,1750505446367,-182.860966,0.00023516,7]
[366844517,1750505446376,-182.860966,0.00023516,7]
[366844519,1750505446387,-182.860966,0.00023516,7]
[366844520,1750505446397,-182.860966,0.00023516,7]
[366844521,1750505446406,-151.0,0.00023516,7]
[366844522,1750505446416,-6417.7098713,0.00023516,2]
[366844523,1750505446425,-336.910037,0.00023516,7]
[366844524,1750505446435,-336.910037,0.00023516,7]
[366844525,1750505446444,-151.0,0.00023516,7]
[366844526,1750505446453,-151.0,0.00023516,7]
[366844527,1750505446463,-336.910037,0.00023516,7]
[366844529,1750505446472,-336.910037,0.00023516,7]
[366844530,1750505446482,-151.0,0.00023516,7]
[366844531,1750505446491,-151.0,0.00023516,7]
[366844532,1750505446501,-151.0,0.00023516,7]
[366844534,1750505446511,-278.699649,0.00023516,7]
[366844535,1750505446520,-278.699649,0.00023516,7]
[366844536,1750505446529,-278.699649,0.00023516,7]
[366844537,1750505446543,-278.699649,0.00023516,7]
[366844538,1750505446552,-151.0,0.00023516,7]
[366844539,1750505446561,-151.85221,0.00023516,7]
[366844540,1750505446571,-375.348405,0.00023516,7]
[366844541,1750505446580,-375.348405,0.00023516,7]
[366844542,1750505446590,-375.348405,0.00023516,7]
[366844543,1750505446599,-375.348405,0.00023516,7]
[366844544,1750505446609,-10036.387767,0.00023516,2]
[366844545,1750505446619,-151.0,0.00023516,7]
[366844547,1750505446629,-151.0,0.00023516,7]
[366844548,1750505446638,-300.0,0.00023517,2]
[366844549,1750505446647,-300.0,0.00023517,2]
[366844550,1750505446657,-151.0,0.00023518,7]
[366844551,1750505446667,-2056.583946,0.00023518,7]
[366844552,1750505446676,-2056.583946,0.00023518,7]
[366844553,1750505446686,-153.769275,0.00023518,7]
[366844554,1750505446696,-151.0,0.00023518,7]
[366844555,1750505446706,-151.0,0.00023518,7]
[366844556,1750505446715,-176.96721,0.00023523,2]
[366844557,1750505446724,-300.0,0.00023533,2]
[366844558,1750505446734,-300.0,0.00023533,2]
[366844559,1750505446743,-300.0,0.00023533,2]
[366844560,1750505446753,-300.0,0.00023533,2]
[366844561,1750505446762,-151.0,0.00023534,7]
[366844562,1750505446772,-151.0,0.00023534,7]
[366844563,1750505446781,-151.0,0.00023534,7]
[366844564,1750505446791,-151.0,0.00023534,7]
[366844565,1750505446800,-151.0,0.00023534,7]